bitfinex-derivatives/quotes_BNBF0:USTF0_20250211
["timestamp","ask_amount","ask_price","bid_price","bid_amount"]
[1739314930865,2.51880308,641.06,639.79,0.31260257]
[1739314931066,2.83079122,641.05,639.79,0.31260257]
[1739314931268,2.83079609,641.04,639.79,0.31260257]
[1739314931467,2.83080095,641.03,639.79,0.31260257]
[1739314931667,2.83080582,641.02,639.79,0.31260257]
[1739314931966,2.52168174,641.01,639.79,0.31260257]
[1739314932168,1.33199303,641.0,639.79,0.31260257]
[1739314932367,2.83420098,640.99,639.79,0.31260257]
[1739314932587,2.52218364,640.98,639.79,0.31260257]
[1739314932770,2.83421072,640.97,639.79,0.31260257]
[1739314932963,2.83421559,640.96,639.79,0.31260257]
[1739314933170,2.52218364,640.95,639.79,0.31260257]
[1739314933470,2.52218364,640.94,639.79,0.31260257]
[1739314933768,2.52218364,640.93,639.79,0.31260257]
[1739314933963,2.52268017,640.92,639.79,0.31260257]
[1739314934168,2.52268017,640.91,639.79,0.31260257]
[1739314934366,2.52268017,640.9,639.79,0.31260257]
[1739314934563,2.52268017,640.89,639.79,0.31260257]
[1739314934766,2.52268017,640.88,639.79,0.31260257]
[1739314934963,2.52268017,640.87,639.79,0.31260257]
[1739314935269,0.31203195,640.96,639.79,0.31260257]
[1739314935270,2.52268017,640.86,639.79,0.31260257]
[1739314935470,2.52268017,640.85,639.79,0.31260257]
[1739314935663,2.52268017,640.84,639.79,0.31260257]
[1739314935863,2.52268017,640.83,639.79,0.31260257]
[1739314936067,2.52521245,640.82,639.79,0.31260257]
[1739314936265,2.52521245,640.81,639.79,0.31260257]
[1739314936462,2.52521245,640.8,639.79,0.31260257]
[1739314936662,2.52521245,640.79,639.79,0.31260257]
[1739314936866,1.33478422,640.78,639.79,0.31260257]
[1739314937070,1.33478422,640.77,639.79,0.31260257]
[1739314937273,1.33478422,640.76,639.79,0.31260257]
[1739314937469,1.33478422,640.75,639.79,0.31260257]
[1739314937670,1.33478422,640.74,639.79,0.31260257]
[1739314937869,1.33478422,640.73,639.79,0.31260257]
[1739314938072,1.33478422,640.72,639.79,0.31260257]
[1739314938270,2.52784999,640.71,639.79,0.31260257]
[1739314938470,2.52784999,640.7,639.79,0.31260257]
[1739314938664,2.52865011,640.69,639.79,0.31260257]
[1739314938871,2.52865011,640.68,639.79,0.31260257]
[1739314939165,2.52865011,640.67,639.79,0.31260257]
[1739314939371,2.52865011,640.66,639.89,1.13057641]
[1739314939571,2.52865011,640.65,639.89,1.13057641]
[1739314939763,2.52865011,640.64,639.89,1.13057641]
[1739314940017,2.52865011,640.63,639.89,1.13057641]
[1739314940169,2.528868,640.62,639.89,1.13057641]
[1739314940366,2.528868,640.61,639.89,1.13057641]
[1739314940563,2.528868,640.6,639.89,1.13057641]
[1739314940764,2.528868,640.59,639.89,1.13057641]
[1739314940967,1.33580223,640.58,639.89,1.13057641]
[1739314941170,1.33580223,640.57,639.89,1.13057641]
[1739314941470,1.33580223,640.56,639.89,1.13057641]
[1739314941671,1.169,640.77,639.79,0.31260257]
[1739314941672,1.33580223,640.55,639.79,0.31260257]
[1739314941971,1.169,640.77,639.79,0.31260257]
[1739314941972,1.33580223,640.54,639.79,0.31260257]
[1739314942172,1.33702395,640.53,639.79,0.31260257]
[1739314942371,2.53127592,640.52,639.79,0.31260257]
[1739314942571,2.53127592,640.51,639.79,0.31260257]
[1739314942772,2.53127592,640.5,639.79,0.31260257]
[1739314942973,2.53127592,640.49,639.79,0.31260257]
[1739314943174,2.53127592,640.48,639.79,0.31260257]
[1739314943371,2.53127592,640.47,639.79,0.31260257]
[1739314943571,2.53127592,640.46,639.79,0.31260257]
[1739314943773,2.53127592,640.45,639.79,0.31260257]
[1739314943973,2.53127592,640.44,639.79,0.31260257]
[1739314944283,0.652,640.48,639.79,0.31260257]
[1739314944284,2.53152518,640.43,639.79,0.31260257]
[1739314944469,1.33702395,640.42,639.79,0.31260257]
[1739314944671,2.53144354,640.41,639.79,0.31260257]
[1739314944876,2.53144354,640.4,639.79,0.31260257]
[1739314945069,2.53144354,640.39,639.79,0.31260257]
[1739314945271,2.53144354,640.38,639.79,0.31260257]
[1739314945471,2.53144354,640.37,639.79,0.31260257]
[1739314945674,2.53144354,640.36,639.79,0.31260257]
[1739314945874,2.53144354,640.35,639.79,0.31260257]
[1739314946071,2.53144354,640.34,639.79,0.31260257]
[1739314946277,2.53144354,640.33,639.79,0.31260257]
[1739314946576,2.53144354,640.32,639.79,0.31260257]
[1739314946772,2.53207575,640.31,639.79,0.31260257]
[1739314947072,1.33746187,640.3,639.79,0.31260257]
[1739314947302,1.33746187,640.29,639.79,0.31260257]
[1739314947472,1.33746187,640.28,639.79,0.31260257]
[1739314947778,1.33746187,640.27,639.79,0.31260257]
[1739314947976,1.33746187,640.26,639.79,0.31260257]
[1739314948171,1.33746187,640.25,639.79,0.31260257]
[1739314948381,0.93,640.3,639.79,0.31260257]
[1739314948879,1.33803155,640.29,639.79,0.31260257]
[1739314949177,0.93,640.3,639.79,0.31260257]
[1739314949380,1.3382689,640.29,639.79,0.31260257]
[1739314949601,0.93,640.3,639.79,0.31260257]
[1739314949779,1.33833582,640.29,639.79,0.31260257]
[1739314949978,2.53357328,640.28,639.79,0.31260257]
[1739314950177,1.19523746,640.27,639.79,0.31260257]
[1739314950380,2.53335924,640.26,639.79,0.31260257]
[1739314950580,2.53335924,640.25,639.79,0.31260257]
[1739314950780,2.53335924,640.24,639.79,0.31260257]
[1739314950973,2.53335924,640.23,639.79,0.31260257]
[1739314951177,0.93,640.3,639.79,0.31260257]
[1739314951178,2.53315165,640.22,639.79,0.31260257]
[1739314951379,2.53299175,640.21,639.79,0.31260257]
[1739314951576,1.33812178,640.2,639.79,0.31260257]
[1739314951778,0.93,640.3,639.37,1.13057641]
[1739314951779,2.53299002,640.19,639.37,1.13057641]
[1739314952073,2.53299002,640.18,639.38,0.31280302]
[1739314952280,2.5325969,640.17,639.38,0.31280302]
[1739314952488,1.33770107,640.16,639.38,0.31280302]
[1739314952783,2.53230763,640.15,639.38,0.31280302]
[1739314952983,2.53230763,640.14,639.38,0.31280302]
[1739314953184,0.93,640.3,639.38,0.31280302]
[1739314953185,2.53230763,640.13,639.38,0.31280302]
[1739314953383,2.53230763,640.12,639.38,0.31280302]
[1739314953581,2.53230763,640.11,639.38,0.31280302]
[1739314953878,2.53230763,640.1,639.38,0.31280302]
[1739314954082,1.33770107,640.09,639.38,0.31280302]
[1739314954283,2.53053622,640.08,639.38,0.31280302]
[1739314954583,2.52993837,640.07,639.38,0.31280302]
[1739314954782,2.52993837,640.06,639.38,0.31280302]
[1739314954980,2.52915778,640.05,639.38,0.31280302]
[1739314955179,1.33580184,640.04,639.38,0.31280302]
[1739314955376,1.33580184,640.03,639.38,0.31280302]
[1739314955681,1.33554211,640.02,639.38,0.31280302]
[1739314955883,1.025,640.14,639.38,0.31280302]
[1739314956083,2.52855233,640.13,639.38,0.31280302]
[1739314956282,1.3355411,640.12,639.38,0.31280302]
[1739314956483,2.5274612,640.11,639.38,0.31280302]
[1739314956685,2.5274612,640.1,639.38,0.31280302]
[1739314956885,2.5274612,640.09,639.38,0.31280302]
[1739314957183,2.5274612,640.08,639.38,0.31280302]
[1739314957383,2.5274612,640.07,639.38,0.31280302]
[1739314957586,2.5274612,640.06,639.38,0.31280302]
[1739314957782,2.5274612,640.05,639.38,0.31280302]
[1739314958079,1.33495423,640.04,639.38,0.31280302]
[1739314958280,1.33495423,640.03,639.38,0.31280302]
[1739314958481,1.33495423,640.02,639.38,0.31280302]
[1739314958677,1.58,640.12,639.38,0.31280302]
[1739314958678,1.33495423,640.01,639.38,0.31280302]
[1739314958979,1.33495423,640.0,639.38,0.31280302]
[1739314959175,1.33495423,639.99,639.38,0.31280302]
[1739314959378,1.33495423,639.98,639.38,0.31280302]
[1739314959584,1.33495423,639.97,639.38,0.31280302]
[1739314959780,1.58,640.12,639.38,0.31280302]
[1739314959984,2.52229338,640.11,639.38,0.31280302]
[1739314960284,2.52229338,640.1,639.38,0.31280302]
[1739314960479,2.52127182,640.09,639.38,0.31280302]
[1739314960680,2.52127182,640.08,639.38,0.31280302]
[1739314960884,2.52127182,640.07,639.38,0.31280302]
[1739314961085,2.52127182,640.06,639.38,0.31280302]
[1739314961277,1.33167279,640.05,639.38,0.31280302]
[1739314961482,2.52057762,640.04,638.76,1.13057641]
[1739314961681,2.52057762,640.03,638.78,0.31309684]
[1739314961883,2.52057762,640.02,638.78,0.31309684]
[1739314962183,2.52057762,640.01,638.78,0.31309684]
[1739314962485,2.51680856,640.0,638.78,0.31309684]
[1739314962784,2.51680856,639.99,638.78,0.31309684]
[1739314962985,2.51680856,639.98,638.78,0.31309684]
[1739314963182,2.51680856,639.97,638.78,0.31309684]
[1739314963386,2.51680856,639.96,638.78,0.31309684]
[1739314963587,2.51680856,639.95,638.78,0.31309684]
[1739314963781,2.51680856,639.94,638.78,0.31309684]
[1739314963980,2.51680856,639.93,638.78,0.31309684]
[1739314964185,1.32924432,639.92,638.78,0.31309684]
[1739314964381,1.32825037,639.91,638.78,0.31309684]
[1739314964587,1.58,640.12,638.78,0.31309684]
[1739314964782,2.5144724,640.11,638.78,0.31309684]
[1739314964987,2.5144724,640.1,638.78,0.31309684]
[1739314965283,2.5144724,640.09,638.79,1.6321043]
[1739314965487,2.5144724,640.08,638.81,0.31308213]
[1739314965691,2.5144724,640.07,638.81,0.31308213]
[1739314965890,2.5144724,640.06,638.81,0.31308213]
[1739314966091,2.5144724,640.05,638.81,0.31308213]
[1739314966290,2.5144724,640.04,638.81,0.31308213]
[1739314966491,2.5144724,640.03,638.81,0.31308213]
[1739314966791,2.5144724,640.02,638.81,0.31308213]
[1739314966997,2.5144724,640.01,638.81,0.31308213]
[1739314967186,2.5144724,640.0,638.81,0.31308213]
[1739314967385,2.5144724,639.99,638.81,0.31308213]
[1739314967590,1.32805628,639.98,638.81,0.31308213]
[1739314967790,1.32805628,639.97,638.81,0.31308213]
[1739314968090,1.32805628,639.96,638.81,0.31308213]
[1739314968288,1.32805628,639.95,638.81,0.31308213]
[1739314968492,1.32805628,639.94,638.81,0.31308213]
[1739314968713,1.32805628,639.93,638.81,0.31308213]
[1739314968895,0.652,639.99,638.81,0.31308213]
[1739314969191,1.32629595,639.98,638.81,0.31308213]
[1739314969395,0.652,639.99,638.81,0.31308213]
[1739314971290,1.32582848,639.98,638.81,0.31308213]
[1739314971495,0.652,639.99,638.81,0.31308213]
[1739314975298,0.652,639.99,638.85,1.13057641]
[1739314975498,0.652,639.99,638.87,0.31305273]
[1739314977206,0.652,639.99,638.87,1.44362914]
[1739314977601,1.632,639.99,638.87,1.44362914]
[1739314980007,1.632,639.99,639.08,1.13057641]
[1739314980203,1.632,639.99,639.1,0.31294007]
[1739314990318,1.632,639.99,639.28,1.13057641]
[1739314991117,1.632,639.99,639.29,0.31284706]
[1739314993718,0.98,639.99,639.29,0.31284706]
[1739314994914,1.632,639.99,639.29,0.31284706]
[1739315003531,0.652,639.99,639.29,0.31284706]
[1739315006835,0.848,640.0,639.29,0.31284706]
[1739315007934,0.848,640.0,639.44,1.13057641]
[1739315008233,0.848,640.0,639.45,0.31276878]
[1739315020337,0.83725891,640.0,639.45,0.31276878]
[1739315021145,1.32780536,639.99,639.45,0.31276878]
[1739315021343,0.83725891,640.0,639.45,0.31276878]
[1739315023246,1.32811355,639.99,639.45,0.31276878]
[1739315023542,1.32854144,639.98,639.45,0.31276878]
[1739315023846,1.32854144,639.97,639.45,0.31276878]
[1739315024046,0.83725891,640.0,639.45,0.31276878]
[1739315024248,1.32836605,639.99,639.45,0.31276878]
[1739315024446,1.32836605,639.98,639.45,0.31276878]
[1739315024642,0.83725891,640.0,639.45,0.31276878]
[1739315024845,1.32840875,639.99,639.45,0.31276878]
[1739315025045,1.32839822,639.98,639.45,0.31276878]
[1739315025347,1.32839822,639.97,639.45,0.31276878]
[1739315025548,1.32848152,639.96,639.45,0.31276878]
[1739315025742,1.32848152,639.95,639.45,0.31276878]
[1739315026047,1.32848152,639.94,639.45,0.31276878]
[1739315026247,1.3286494,639.93,639.45,0.31276878]
[1739315026446,1.3286494,639.92,639.45,0.31276878]
[1739315026646,0.83725891,640.0,639.45,0.31276878]
[1739315026851,2.51540355,639.99,639.45,0.31276878]
[1739315027048,2.51540355,639.98,639.45,0.31276878]
[1739315027251,0.83725891,640.0,639.45,0.31276878]
[1739315027252,2.51540355,639.97,639.45,0.31276878]
[1739315027453,1.32851695,639.96,639.45,0.31276878]
[1739315027750,2.51516474,639.95,638.68,1.13057641]
[1739315028006,2.51516474,639.94,638.7,0.31313605]
[1739315028149,2.51516474,639.93,638.7,0.31313605]
[1739315028350,2.51516474,639.92,638.7,0.31313605]
[1739315028549,2.51516474,639.91,638.7,0.31313605]
[1739315028747,2.51516474,639.9,638.71,1.6324935]
[1739315028949,2.51516474,639.89,638.71,1.6324935]
[1739315029250,2.51516474,639.88,638.71,1.6324935]
[1739315029445,2.51516474,639.87,638.71,1.6324935]
[1739315029650,2.51516474,639.86,638.72,0.31312625]
[1739315029849,2.51516474,639.85,638.72,0.31312625]
[1739315030045,2.51516474,639.84,638.72,0.31312625]
[1739315030250,2.51516474,639.83,638.72,0.31312625]
[1739315030551,2.51516474,639.82,638.72,0.31312625]
[1739315030751,2.51516474,639.81,638.72,0.31312625]
[1739315030951,2.51516474,639.8,638.72,0.31312625]
[1739315031149,2.51516474,639.79,638.72,0.31312625]
[1739315031450,2.51516474,639.78,638.72,0.31312625]
[1739315031645,2.51516474,639.77,638.72,0.31312625]
[1739315031846,2.51516474,639.76,638.72,0.31312625]
[1739315032049,2.51516474,639.75,638.72,0.31312625]
[1739315032250,2.51516474,639.74,638.72,0.31312625]
[1739315032446,2.51516474,639.73,638.72,0.31312625]
[1739315032650,2.51516474,639.72,638.72,0.31312625]
[1739315032845,2.51516474,639.71,638.72,0.31312625]
[1739315033053,0.85,640.14,638.72,0.31312625]
[1739315033054,2.51516474,639.7,638.72,0.31312625]
[1739315033251,2.51516474,639.69,638.72,0.31312625]
[1739315033446,2.51516474,639.68,638.72,0.31312625]
[1739315033652,2.51516474,639.67,638.72,0.31312625]
[1739315033851,2.51016167,639.66,638.72,0.31312625]
[1739315034152,2.51016167,639.65,638.72,0.31312625]
[1739315034453,1.32351388,639.64,638.72,0.31312625]
[1739315034753,1.32351388,639.63,638.72,0.31312625]
[1739315034953,0.837,639.66,638.72,0.31312625]
[1739315038050,1.836,639.66,638.72,0.31312625]
[1739315039054,0.652,639.65,638.72,0.31312625]
[1739315042461,1.766,639.65,638.72,0.31312625]
[1739315045759,2.49854524,639.64,638.72,0.31312625]
[1739315045977,2.49854524,639.63,638.72,0.31312625]
[1739315046255,1.3195609,639.62,638.72,0.31312625]
[1739315046457,1.766,639.65,638.72,0.31312625]
[1739315046763,1.31912647,639.64,638.72,0.31312625]
[1739315047055,1.766,639.65,638.72,0.31312625]
[1739315048075,1.31864444,639.64,638.72,0.31312625]
[1739315048257,1.31864444,639.63,638.72,0.31312625]
[1739315048459,1.766,639.65,638.72,0.31312625]
[1739315048460,1.31864444,639.62,638.72,0.31312625]
[1739315048657,1.31864444,639.61,638.72,0.31312625]
[1739315048861,1.766,639.65,638.72,0.31312625]
[1739315049057,1.31837712,639.64,638.72,0.31312625]
[1739315049362,1.31837712,639.63,638.72,0.31312625]
[1739315049561,1.31837712,639.62,638.72,0.31312625]
[1739315049763,1.31837712,639.61,638.72,0.31312625]
[1739315049962,1.766,639.65,638.72,0.31312625]
[1739315050174,1.31808717,639.64,638.72,0.31312625]
[1739315050457,1.31808717,639.63,638.72,0.31312625]
[1739315050663,1.766,639.65,638.72,0.31312625]
[1739315052566,1.31814406,639.64,638.72,0.31312625]
[1739315052757,1.31814406,639.63,638.72,0.31312625]
[1739315052958,1.31814406,639.62,638.72,0.31312625]
[1739315053164,2.4946681,639.61,638.72,0.31312625]
[1739315053367,2.4946681,639.6,638.72,0.31312625]
[1739315053566,2.4946681,639.59,638.72,0.31312625]
[1739315053863,2.4946681,639.58,638.72,0.31312625]
[1739315054059,2.4946681,639.57,638.72,0.31312625]
[1739315054264,2.4946681,639.56,638.72,0.31312625]
[1739315054467,2.4946681,639.55,638.72,0.31312625]
[1739315054665,2.4946681,639.54,638.72,0.31312625]
[1739315054865,1.31814406,639.53,638.72,0.31312625]
[1739315055066,1.766,639.65,638.72,0.31312625]
[1739315055261,1.31603358,639.64,638.72,0.31312625]
[1739315055459,1.766,639.65,638.72,0.31312625]
[1739315056504,1.31631498,639.64,638.72,0.31312625]
[1739315056660,1.31631498,639.63,638.72,0.31312625]
[1739315056867,1.766,639.65,638.72,0.31312625]
[1739315057167,3.104,639.65,638.72,0.31312625]
[1739315057767,1.31685179,639.64,638.72,0.31312625]
[1739315057961,1.31685179,639.63,638.72,0.31312625]
[1739315058162,3.104,639.65,638.72,0.31312625]
[1739315058366,1.31686375,639.64,638.72,0.31312625]
[1739315058667,1.31686375,639.63,638.72,0.31312625]
[1739315058865,1.31686375,639.62,638.72,0.31312625]
[1739315059065,1.31686375,639.61,638.72,0.31312625]
[1739315059367,1.31686375,639.6,638.72,0.31312625]
[1739315059569,1.31686375,639.59,638.72,0.31312625]
[1739315059865,1.31697597,639.58,638.72,0.31312625]
[1739315060166,3.702,639.65,638.72,0.31312625]
[1739315060368,0.652,639.58,638.72,0.31312625]
[1739315062663,1.902,639.58,638.72,0.31312625]
[1739315063263,1.31861857,639.57,638.72,0.31312625]
[1739315063467,1.31919943,639.56,638.72,0.31312625]
[1739315063667,1.31919943,639.55,638.72,0.31312625]
[1739315063867,1.31919943,639.54,638.72,0.31312625]
[1739315064170,1.31919943,639.53,638.72,0.31312625]
[1739315064371,1.31919943,639.52,638.72,0.31312625]
[1739315064568,2.49844631,639.51,638.72,0.31312625]
[1739315064772,2.49844631,639.5,638.72,0.31312625]
[1739315064971,2.49844631,639.49,638.72,0.31312625]
[1739315065171,2.49844631,639.48,638.72,0.31312625]
[1739315065372,2.50005171,639.47,638.72,0.31312625]
[1739315065676,2.50005171,639.46,638.72,0.31312625]
[1739315065968,2.50005171,639.45,638.72,0.31312625]
[1739315066274,1.17976883,639.44,638.72,0.31312625]
[1739315066473,1.902,639.58,638.72,0.31312625]
[1739315072477,3.293,639.58,638.72,0.31312625]
[1739315075676,3.293,639.58,137.53,1.45422816]
[1739315077573,0.3127101,639.57,137.53,1.45422816]
[1739315106400,2.641,639.58,137.53,1.45422816]
[1739315154435,0.26028449,768.39,137.53,1.45422816]
[1739315277240,0.26013891,768.82,137.53,1.45422816]
[1739315488615,38.7570404,683.45,137.53,1.45422816]
[1739315488818,5.58176253,649.69,633.5,7.59822577]
[1739315489015,8.82657536,649.68,633.56,9.28311599]
[1739315489214,18.59911914,649.67,633.56,9.28311599]
[1739315489416,8.82657536,649.66,633.57,4.97156945]
[1739315489715,18.59911914,649.65,633.57,6.59889734]
[1739315489916,8.82657536,649.64,633.58,4.97156945]
[1739315490119,18.59911914,649.63,634.38,0.31526845]
[1739315490315,8.8254681,649.62,634.38,0.31526845]
[1739315490614,0.30822815,648.87,634.38,0.31526845]
[1739315490818,8.8254681,648.86,634.38,0.31526845]
[1739315491013,0.3085753,648.14,634.38,0.31526845]
[1739315491318,8.8254681,648.13,634.38,0.31526845]
[1739315491519,0.30890416,647.45,634.38,0.31526845]
[1739315491717,8.8254681,647.44,634.38,0.31526845]
[1739315491918,0.30921937,646.79,634.38,0.31526845]
[1739315492115,8.82431317,646.78,634.38,0.31526845]
[1739315492314,0.30952086,646.16,634.38,0.31526845]
[1739315492521,8.82431317,646.15,634.38,0.31526845]
[1739315492817,0.30978454,645.61,634.38,0.31526845]
[1739315493120,12.72870439,645.6,634.38,0.31526845]
[1739315493421,0.30999581,645.17,634.38,0.31526845]
[1739315493620,7.62476861,645.16,634.39,2.15219956]
[1739315493821,0.31016407,644.82,634.92,0.31500031]
[1739315494021,1.34241904,644.81,634.93,2.15219956]
[1739315494321,0.31029881,644.54,635.42,0.31475244]
[1739315494521,1.34241904,644.53,635.43,2.15219956]
[1739315494719,1.34241904,644.52,635.44,2.15219956]
[1739315494924,0.3104144,644.3,635.89,0.3145198]
[1739315495117,1.34241904,644.29,635.9,2.15219956]
[1739315495322,2.34260146,644.28,636.31,0.3143122]
[1739315495519,0.31050596,644.11,636.32,2.15219956]
[1739315495718,1.34241904,644.1,636.33,2.15219956]
[1739315496022,0.31057347,643.97,636.7,0.31411967]
[1739315496223,1.34241904,643.96,636.71,2.15219956]
[1739315496518,1.34241904,643.95,636.72,2.15219956]
[1739315496717,0.31063135,643.85,637.08,0.31393231]
[1739315496922,1.34241904,643.84,637.09,2.15219956]
[1739315497124,0.31064583,643.82,637.42,0.31376486]
[1739315497324,1.34241904,643.81,637.43,2.15219956]
[1739315497525,0.3106603,643.79,637.74,0.31360742]
[1739315497719,1.34241904,643.78,637.75,2.15219956]
[1739315497921,0.31067478,643.76,638.05,0.31345505]
[1739315498221,2.34009275,643.75,638.06,2.15219956]
[1739315498419,1.33991033,643.74,638.07,2.15219956]
[1739315498719,0.31069409,643.72,638.35,0.31330774]
[1739315498922,1.33966685,643.71,638.36,2.15219956]
[1739315499220,0.31070857,643.69,638.62,0.31317528]
[1739315499422,1.33966685,643.68,638.63,2.15219956]
[1739315499720,0.31072305,643.66,638.88,0.31304783]
[1739315500028,2.33984927,643.65,638.89,2.15219956]
[1739315500255,0.31073753,643.63,640.99,1.15564507]
[1739315500425,1.33966685,643.62,641.12,0.31195408]
[1739315500621,1.65041404,643.61,641.12,0.31195408]
[1739315500826,1.65041886,643.6,641.12,0.31195408]
[1739315501021,2.65060611,643.59,641.12,0.31195408]
[1739315501226,1.65042852,643.58,641.12,0.31195408]
[1739315501428,1.65043335,643.57,641.12,0.31195408]
[1739315501624,1.65043818,643.56,641.12,0.31195408]
[1739315501822,1.65044301,643.55,641.12,0.31195408]
[1739315502124,1.65044784,643.54,641.12,0.31195408]
[1739315502358,1.65045267,643.53,641.12,0.31195408]
[1739315502524,1.6504575,643.52,641.12,0.31195408]
[1739315502828,1.65046233,643.51,641.12,0.31195408]
[1739315503027,2.65064958,643.5,641.17,1.15564507]
[1739315503223,1.33966685,643.49,641.28,0.31187624]
[1739315503423,1.65047682,643.48,641.28,0.31187624]
[1739315503622,1.65048165,643.47,641.28,0.31187624]
[1739315503827,2.6506689,643.46,641.28,0.31187624]
[1739315504023,1.33966685,643.45,641.28,0.31187624]
[1739315504226,2.33984927,643.44,641.28,0.31187624]
[1739315504522,1.33966685,643.43,641.28,0.31187624]
[1739315504727,1.33966685,643.42,641.28,0.31187624]
[1739315504926,1.33966685,643.41,641.28,0.31187624]
[1739315505124,1.33966685,643.4,641.28,0.31187624]
[1739315505329,2.33984927,643.39,641.28,0.31187624]
[1739315505527,1.33966685,643.38,641.28,0.31187624]
[1739315505721,2.33984927,643.37,641.28,0.31187624]
[1739315505927,1.33966685,643.36,641.28,0.31187624]
[1739315506126,1.33966685,643.35,641.28,0.31187624]
[1739315506326,1.33966685,643.34,641.28,0.31187624]
[1739315506527,1.33966685,643.33,641.28,0.31187624]
[1739315506729,1.33756414,643.32,641.28,0.31187624]
[1739315506924,2.33774656,643.31,641.28,0.31187624]
[1739315507129,1.33756414,643.3,641.28,0.31187624]
[1739315507335,1.3374719,643.29,641.28,0.31187624]
[1739315507657,2.33765432,643.28,641.28,0.31187624]
[1739315507831,1.62364011,643.27,641.28,0.31187624]
[1739315508026,2.62382253,643.26,641.28,0.31187624]
[1739315508231,1.62364011,643.25,641.28,0.31187624]
[1739315508431,2.62382253,643.24,641.28,0.31187624]
[1739315508760,1.62364011,643.23,641.28,0.31187624]
[1739315508932,1.62334112,643.22,641.28,0.31187624]
[1739315509230,1.62333635,643.21,641.28,0.31187624]
[1739315509426,1.62333635,643.2,641.28,0.31187624]
[1739315509632,1.62333635,643.19,641.28,0.31187624]
[1739315509827,1.62333635,643.18,641.28,0.31187624]
[1739315510026,2.62351877,643.17,641.28,0.31187624]
[1739315510332,1.62333635,643.16,641.28,0.31187624]
[1739315510524,1.62333635,643.15,641.28,0.31187624]
[1739315510732,1.62333281,643.14,641.28,0.31187624]
[1739315510929,1.62333281,643.13,641.28,0.31187624]
[1739315511128,1.62333281,643.12,641.28,0.31187624]
[1739315511330,2.62351523,643.11,641.28,0.31187624]
[1739315511530,1.62333281,643.1,641.28,0.31187624]
[1739315511729,1.62333281,643.09,641.28,0.31187624]
[1739315511931,1.62333281,643.08,641.28,0.31187624]
[1739315512133,1.62333281,643.07,641.28,0.31187624]
[1739315512334,1.62333281,643.06,641.28,0.31187624]
[1739315512534,2.62351523,643.05,641.28,0.31187624]
[1739315512834,1.62333281,643.04,641.28,0.31187624]
[1739315513046,1.62333281,643.03,641.28,0.31187624]
[1739315513232,1.62333281,643.02,641.28,0.31187624]
[1739315513431,1.62333281,643.01,641.28,0.31187624]
[1739315513634,2.62351523,643.0,641.28,0.31187624]
[1739315513834,1.62333281,642.99,641.28,0.31187624]
[1739315514132,2.62351523,642.98,641.28,0.31187624]
[1739315514333,1.62333281,642.97,641.28,0.31187624]
[1739315514633,1.33717291,642.96,641.28,0.31187624]
[1739315514827,1.33717291,642.95,641.28,0.31187624]
[1739315515034,1.33717291,642.94,641.28,0.31187624]
[1739315515233,1.33717291,642.93,641.28,0.31187624]
[1739315515434,1.33717291,642.92,641.28,0.31187624]
[1739315515629,1.33717291,642.91,641.28,0.31187624]
[1739315515834,1.33717291,642.9,641.28,0.31187624]
[1739315516038,1.33717291,642.89,641.28,0.31187624]
[1739315516236,2.33735533,642.88,641.28,0.31187624]
[1739315516435,1.33717291,642.87,641.28,0.31187624]
[1739315516631,1.33717291,642.86,641.28,0.31187624]
[1739315516830,1.33717291,642.85,641.28,0.31187624]
[1739315517031,1.33717291,642.84,641.28,0.31187624]
[1739315517344,1.33717291,642.83,641.28,0.31187624]
[1739315517536,1.33717291,642.82,641.28,0.31187624]
[1739315517732,1.33717291,642.81,641.28,0.31187624]
[1739315517936,1.33717291,642.8,641.28,0.31187624]
[1739315518131,1.33717291,642.79,641.28,0.31187624]
[1739315518337,1.33717291,642.78,641.28,0.31187624]
[1739315518537,1.33717291,642.77,641.28,0.31187624]
[1739315518733,1.33717291,642.76,641.28,0.31187624]
[1739315519038,1.33717291,642.75,641.28,0.31187624]
[1739315519239,1.33569745,642.74,641.28,0.31187624]
[1739315519439,1.33569745,642.73,641.28,0.31187624]
[1739315519639,1.33569745,642.72,641.28,0.31187624]
[1739315519839,2.33587987,642.71,641.28,0.31187624]
[1739315520139,1.33569745,642.7,641.28,0.31187624]
[1739315520339,1.33569745,642.69,641.28,0.31187624]
[1739315520575,1.00018242,642.71,641.28,0.31187624]
[1739315520576,2.33587987,642.68,641.28,0.31187624]
[1739315520739,1.33569745,642.67,641.28,0.31187624]
[1739315520939,1.33578897,642.66,641.28,0.31187624]
[1739315521141,1.33578897,642.65,641.28,0.31187624]
[1739315521341,2.33597139,642.64,641.28,0.31187624]
[1739315521542,1.33578897,642.63,641.28,0.31187624]
[1739315521742,2.33597139,642.62,641.28,0.31187624]
[1739315521942,1.33578897,642.61,641.28,0.31187624]
[1739315522142,2.33597139,642.6,641.28,0.31187624]
[1739315522440,1.33578897,642.59,641.28,0.31187624]
[1739315522676,1.33578897,642.58,641.28,0.31187624]
[1739315522841,2.33652953,642.57,641.28,0.31187624]
[1739315523143,1.33634711,642.56,641.28,0.31187624]
[1739315523343,2.33652953,642.55,641.28,0.31187624]
[1739315523544,1.33634711,642.54,641.28,0.31187624]
[1739315523751,1.33634711,642.53,641.28,0.31187624]